[Event "*** Titled Tuesday 3|2 Blitz"]
[Site "Chess.com"]
[Date "2017.06.06"]
[Round "6"]
[White "Kawhi_Leonard2"]
[Black "Jahonas"]
[Result "1-0"]
[WhiteElo "2197"]
[BlackElo "2206"]
[TimeControl "180+2"]
[EndTime "15:06:19 PDT"]
[Termination "Kawhi_Leonard2 won by resignation"]

1. e4 {[%clk 0:03:02]} 1... c6 {[%clk 0:03:00.1]} 2. d4 {[%clk 0:03:02]} 2... d5
{[%clk 0:03:01.3]} 3. Nd2 {[%clk 0:03:03.7]} 3... dxe4 {[%clk 0:03:02.2]} 4.
Nxe4 {[%clk 0:03:04.8]} 4... Bf5 {[%clk 0:03:03.3]} 5. Ng3 {[%clk 0:03:05.5]}
5... Bg6 {[%clk 0:03:04.5]} 6. h4 {[%clk 0:03:06.9]} 6... h6 {[%clk 0:03:05.3]}
7. Nf3 {[%clk 0:03:08.3]} 7... Nd7 {[%clk 0:03:05.8]} 8. h5 {[%clk 0:03:09.2]}
8... Bh7 {[%clk 0:03:06.5]} 9. Bd3 {[%clk 0:03:10.8]} 9... Bxd3 {[%clk
0:03:07.5]} 10. Qxd3 {[%clk 0:03:12.7]} 10... Qc7 {[%clk 0:03:07.5]} 11. Bd2
{[%clk 0:03:13.7]} 11... Ngf6 {[%clk 0:03:07.9]} 12. O-O-O {[%clk 0:03:14.6]}
12... O-O-O {[%clk 0:03:08.6]} 13. c4 {[%clk 0:03:08.7]} 13... e5 {[%clk
0:02:58.4]} 14. Bc3 {[%clk 0:02:53.9]} 14... exd4 {[%clk 0:02:48]} 15. Nxd4
{[%clk 0:02:50.4]} 15... Bd6 {[%clk 0:02:39.4]} 16. Ngf5 {[%clk 0:02:49.5]}
16... Nc5 {[%clk 0:02:26.4]} 17. Nxd6+ {[%clk 0:02:48.7]} 17... Rxd6 {[%clk
0:02:24.2]} 18. Qf5+ {[%clk 0:02:49.3]} 18... Ne6 {[%clk 0:02:22.6]} 19. Nxe6
{[%clk 0:02:24.7]} 19... Rxe6 {[%clk 0:02:20.6]} 20. Rhe1 {[%clk 0:02:10.5]}
20... Re8 {[%clk 0:02:20.6]} 21. Rxe6 {[%clk 0:01:57.3]} 21... Rxe6 {[%clk
0:02:15.6]} 22. Re1 {[%clk 0:01:36.3]} 22... Qd7 {[%clk 0:02:10.1]} 23. Rxe6
{[%clk 0:01:35.3]} 23... Qxe6 {[%clk 0:02:10.4]} 24. Qxe6+ {[%clk 0:01:29.9]}
24... fxe6 {[%clk 0:02:11]} 25. Bxf6 {[%clk 0:01:23.4]} 25... gxf6 {[%clk
0:02:11.5]} 26. g4 {[%clk 0:01:21.3]} 26... e5 {[%clk 0:02:08.4]} 27. Kd2 {[%clk
0:01:21.1]} 27... Kd7 {[%clk 0:02:09.1]} 28. Kd3 {[%clk 0:01:20]} 28... Ke6
{[%clk 0:02:09.1]} 29. Ke4 {[%clk 0:01:19.4]} 29... c5 {[%clk 0:02:03]} 30. b3
{[%clk 0:01:17.7]} 30... b6 {[%clk 0:02:03.3]} 31. a3 {[%clk 0:01:18.7]} 31...
a6 {[%clk 0:02:02.1]} 32. b4 {[%clk 0:01:07.4]} 32... cxb4 {[%clk 0:01:59.3]}
33. axb4 {[%clk 0:01:08.5]} 33... Kd6 {[%clk 0:01:48.2]} 34. Kd3 {[%clk
0:00:47.1]} 34... Kc6 {[%clk 0:01:42]} 35. Kc3 {[%clk 0:00:47.5]} 35... a5
{[%clk 0:01:41.5]} 36. Kb3 {[%clk 0:00:47.7]} 36... e4 {[%clk 0:01:38.3]} 37.
Ka4 {[%clk 0:00:44.8]} 37... axb4 {[%clk 0:00:36.7]} 38. Kxb4 {[%clk 0:00:44.6]}
38... Kd6 {[%clk 0:00:19.8]} 39. Kb5 {[%clk 0:00:45.4]} 39... Ke5 {[%clk
0:00:12.3]} 40. Kxb6 {[%clk 0:00:44.9]} 40... Kf4 {[%clk 0:00:13.4]} 41. c5
{[%clk 0:00:46.1]} 41... Kf3 {[%clk 0:00:14.4]} 42. c6 {[%clk 0:00:46.9]} 42...
Kxf2 {[%clk 0:00:16]} 43. c7 {[%clk 0:00:48.2]} 43... e3 {[%clk 0:00:17.5]} 44.
c8=Q {[%clk 0:00:49.2]} 44... e2 {[%clk 0:00:18.8]} 45. Qf5+ {[%clk 0:00:48.9]}
45... Kg2 {[%clk 0:00:19.1]} 46. Qe4+ {[%clk 0:00:48.2]} 46... Kf2 {[%clk
0:00:19.3]} 47. Qf4+ {[%clk 0:00:42.5]} 47... Kg2 {[%clk 0:00:19.8]} 48. Qe3
{[%clk 0:00:43.3]} 48... Kf1 {[%clk 0:00:20.4]} 49. Qf3+ {[%clk 0:00:44.2]} 1-0

[Event "*** Titled Tuesday 3|2 Blitz"]
[Site "Chess.com"]
[Date "2017.06.06"]
[Round "6"]
[White "josiwales"]
[Black "hassler2"]
[Result "0-1"]
[WhiteElo "2297"]
[BlackElo "2293"]
[TimeControl "180+2"]
[EndTime "15:06:20 PDT"]
[Termination "hassler2 won by resignation"]

1. e4 {[%clk 0:03:02]} 1... c5 {[%clk 0:02:43.4]} 2. Nc3 {[%clk 0:02:58.8]} 2...
Nc6 {[%clk 0:02:42.9]} 3. g3 {[%clk 0:03:00.7]} 3... g6 {[%clk 0:02:43.3]} 4.
Bg2 {[%clk 0:03:01.6]} 4... Bg7 {[%clk 0:02:44.5]} 5. d3 {[%clk 0:03:03.1]} 5...
d6 {[%clk 0:02:45.8]} 6. Be3 {[%clk 0:03:03.4]} 6... e6 {[%clk 0:02:46.8]} 7.
Qd2 {[%clk 0:03:04.1]} 7... h6 {[%clk 0:02:44.6]} 8. Nge2 {[%clk 0:03:02.2]}
8... Nge7 {[%clk 0:02:45.2]} 9. d4 {[%clk 0:03:01]} 9... cxd4 {[%clk 0:02:43.3]}
10. Nxd4 {[%clk 0:03:02.9]} 10... a6 {[%clk 0:02:36.4]} 11. O-O-O {[%clk
0:03:01.4]} 11... d5 {[%clk 0:02:24.9]} 12. exd5 {[%clk 0:02:59]} 12... exd5
{[%clk 0:02:25.1]} 13. Rhe1 {[%clk 0:02:56.8]} 13... Ne5 {[%clk 0:02:02]} 14.
Qe2 {[%clk 0:02:27.9]} 14... O-O {[%clk 0:01:51.1]} 15. Kb1 {[%clk 0:02:20.2]}
15... Nc4 {[%clk 0:01:47.2]} 16. Nxd5 {[%clk 0:02:04.4]} 16... Na3+ {[%clk
0:01:32]} 17. bxa3 {[%clk 0:01:45.7]} 17... Nxd5 {[%clk 0:01:32.4]} 18. Qc4
{[%clk 0:01:32.6]} 18... Nxe3 {[%clk 0:01:25.7]} 19. fxe3 {[%clk 0:01:27.9]}
19... Qg5 {[%clk 0:01:21.4]} 20. Qd5 {[%clk 0:01:21.7]} 20... Qe7 {[%clk
0:01:17.3]} 21. Qb3 {[%clk 0:01:18.5]} 21... Qc5 {[%clk 0:01:02.5]} 22. c4
{[%clk 0:01:11.9]} 22... Bf5+ {[%clk 0:00:56.3]} 23. Nxf5 {[%clk 0:00:59.4]}
23... Qxf5+ {[%clk 0:00:56.1]} 24. Qc2 {[%clk 0:00:57.7]} 24... Qe5 {[%clk
0:00:56.3]} 25. Rd4 {[%clk 0:00:53.2]} 25... Rad8 {[%clk 0:00:51.1]} 26. Red1
{[%clk 0:00:50]} 26... Rc8 {[%clk 0:00:43.5]} 27. Bd5 {[%clk 0:00:39.3]} 27...
Kh7 {[%clk 0:00:41.8]} 28. Qd3 {[%clk 0:00:31.1]} 28... b5 {[%clk 0:00:38.5]}
29. cxb5 {[%clk 0:00:26.8]} 29... axb5 {[%clk 0:00:40.4]} 30. Bb3 {[%clk
0:00:27.4]} 30... Qh5 {[%clk 0:00:29.1]} 31. h4 {[%clk 0:00:23.2]} 31... Qf3
{[%clk 0:00:25.2]} 32. Rf1 {[%clk 0:00:20.4]} 32... Qxg3 {[%clk 0:00:23.8]} 33.
Rxf7 {[%clk 0:00:18.1]} 33... Qe1+ {[%clk 0:00:20.8]} 34. Qd1 {[%clk 0:00:16.6]}
34... Qxe3 {[%clk 0:00:21.4]} 35. Rxg7+ {[%clk 0:00:16.2]} 35... Kxg7 {[%clk
0:00:21.3]} 36. Rd7+ {[%clk 0:00:18.1]} 36... Kh8 {[%clk 0:00:21.7]} 37. Rd3
{[%clk 0:00:09.8]} 37... Qe4 {[%clk 0:00:21.5]} 38. Qd2 {[%clk 0:00:10.1]} 38...
Kg7 {[%clk 0:00:21]} 39. Kb2 {[%clk 0:00:10.3]} 39... Qe5+ {[%clk 0:00:21.2]}
40. Rd4 {[%clk 0:00:10.8]} 40... Rfd8 {[%clk 0:00:21.8]} 0-1

[Event "*** Titled Tuesday 3|2 Blitz"]
[Site "Chess.com"]
[Date "2017.06.06"]
[Round "6"]
[White "Abrito99"]
[Black "pKiLz5Rn9b"]
[Result "1-0"]
[WhiteElo "2333"]
[BlackElo "2483"]
[TimeControl "180+2"]
[EndTime "15:06:49 PDT"]
[Termination "Abrito99 won on time"]

1. e4 {[%clk 0:03:02]} 1... e6 {[%clk 0:03:00.6]} 2. Nf3 {[%clk 0:03:01.5]} 2...
d5 {[%clk 0:03:01.3]} 3. Nc3 {[%clk 0:03:03]} 3... Nf6 {[%clk 0:02:59.9]} 4. e5
{[%clk 0:03:03.7]} 4... Nfd7 {[%clk 0:03:01.3]} 5. d4 {[%clk 0:03:05.2]} 5... c5
{[%clk 0:03:02.8]} 6. dxc5 {[%clk 0:03:06.7]} 6... Nc6 {[%clk 0:03:03.9]} 7. Bf4
{[%clk 0:03:07.9]} 7... Nxc5 {[%clk 0:03:04.2]} 8. Bd3 {[%clk 0:03:07.1]} 8...
Be7 {[%clk 0:03:05.1]} 9. h4 {[%clk 0:03:07.6]} 9... h6 {[%clk 0:03:00.9]} 10.
h5 {[%clk 0:03:08.3]} 10... a6 {[%clk 0:03:01]} 11. a3 {[%clk 0:03:08.7]} 11...
b5 {[%clk 0:03:01.1]} 12. Rh3 {[%clk 0:03:05.4]} 12... f5 {[%clk 0:02:53.8]} 13.
exf6 {[%clk 0:03:01.8]} 13... Bxf6 {[%clk 0:02:54.8]} 14. Bg6+ {[%clk
0:02:55.2]} 14... Kf8 {[%clk 0:02:55.8]} 15. Kf1 {[%clk 0:02:37.2]} 15... e5
{[%clk 0:02:52.2]} 16. Bd2 {[%clk 0:00:57.8]} 16... Bxh3 {[%clk 0:02:51.3]} 17.
gxh3 {[%clk 0:00:59.7]} 17... Ne7 {[%clk 0:02:49]} 18. Qe2 {[%clk 0:00:47.1]}
18... e4 {[%clk 0:02:44.5]} 19. Nh2 {[%clk 0:00:45.4]} 19... Nxg6 {[%clk
0:02:14.5]} 20. hxg6 {[%clk 0:00:47.3]} 20... Qd7 {[%clk 0:02:15.1]} 21. Qh5
{[%clk 0:00:45.8]} 21... Rd8 {[%clk 0:02:11.5]} 22. Ng4 {[%clk 0:00:41.3]} 22...
Qe6 {[%clk 0:02:07.3]} 23. Be3 {[%clk 0:00:37]} 23... Na4 {[%clk 0:01:52.1]} 24.
Nxf6 {[%clk 0:00:22.7]} 24... gxf6 {[%clk 0:01:48.5]} 25. Ne2 {[%clk 0:00:21.3]}
25... Kg7 {[%clk 0:01:44.2]} 26. Nd4 {[%clk 0:00:22.1]} 26... Qe5 {[%clk
0:01:39.3]} 27. Nf5+ {[%clk 0:00:23.6]} 27... Kg8 {[%clk 0:01:38.3]} 28. Bd4
{[%clk 0:00:07.3]} 28... Qe6 {[%clk 0:01:39.1]} 29. Nxh6+ {[%clk 0:00:05.1]}
29... Kf8 {[%clk 0:01:30.2]} 30. g7+ {[%clk 0:00:04.7]} 30... Ke7 {[%clk
0:01:20.3]} 31. Nf5+ {[%clk 0:00:06.2]} 31... Kd7 {[%clk 0:01:20]} 32. gxh8=Q
{[%clk 0:00:07.3]} 32... Rxh8 {[%clk 0:01:21.6]} 33. Qxh8 {[%clk 0:00:07.7]}
33... Qxf5 {[%clk 0:01:23.1]} 34. Qg7+ {[%clk 0:00:08.5]} 34... Ke8 {[%clk
0:01:20.2]} 35. Qg4 {[%clk 0:00:07.5]} 35... Qxg4 {[%clk 0:01:19.1]} 36. hxg4
{[%clk 0:00:08.2]} 1-0

[Event "*** Titled Tuesday 3|2 Blitz"]
[Site "Chess.com"]
[Date "2017.06.06"]
[Round "6"]
[White "Noukii"]
[Black "Drags95"]
[Result "0-1"]
[WhiteElo "2615"]
[BlackElo "2551"]
[TimeControl "180+2"]
[EndTime "15:06:56 PDT"]
[Termination "Drags95 won by resignation"]

1. d4 {[%clk 0:03:02]} 1... Nf6 {[%clk 0:03:00.4]} 2. Nf3 {[%clk 0:03:03.2]}
2... e6 {[%clk 0:03:01.6]} 3. Bg5 {[%clk 0:03:01.2]} 3... d5 {[%clk 0:02:59]} 4.
e3 {[%clk 0:03:01.7]} 4... Be7 {[%clk 0:02:59.1]} 5. Nbd2 {[%clk 0:03:02.7]}
5... O-O {[%clk 0:02:59.1]} 6. Bd3 {[%clk 0:03:00.5]} 6... b6 {[%clk 0:02:59.4]}
7. c3 {[%clk 0:02:51.5]} 7... Bb7 {[%clk 0:03:00.4]} 8. O-O {[%clk 0:02:47.3]}
8... Nbd7 {[%clk 0:03:00.9]} 9. a4 {[%clk 0:02:42.7]} 9... Ne4 {[%clk
0:02:52.6]} 10. Bf4 {[%clk 0:02:40.8]} 10... a5 {[%clk 0:02:44.7]} 11. Qc2
{[%clk 0:02:35.2]} 11... f5 {[%clk 0:02:26.3]} 12. Ne5 {[%clk 0:02:35.6]} 12...
g5 {[%clk 0:02:02.4]} 13. Nxd7 {[%clk 0:02:35]} 13... Qxd7 {[%clk 0:02:01.4]}
14. Be5 {[%clk 0:02:36.5]} 14... Nxd2 {[%clk 0:01:44.3]} 15. Qxd2 {[%clk
0:02:36.7]} 15... Bd6 {[%clk 0:01:45.9]} 16. Bxd6 {[%clk 0:02:03.1]} 16... Qxd6
{[%clk 0:01:47.8]} 17. b4 {[%clk 0:01:58]} 17... Ba6 {[%clk 0:01:37.6]} 18. Bxa6
{[%clk 0:01:57.1]} 18... Rxa6 {[%clk 0:01:39.5]} 19. b5 {[%clk 0:01:54.5]} 19...
Raa8 {[%clk 0:01:39.7]} 20. c4 {[%clk 0:01:55.7]} 20... dxc4 {[%clk 0:01:24.9]}
21. Rac1 {[%clk 0:01:55.3]} 21... f4 {[%clk 0:00:45.8]} 22. Rxc4 {[%clk
0:01:52.1]} 22... f3 {[%clk 0:00:45]} 23. Qc2 {[%clk 0:01:36]} 23... fxg2 {[%clk
0:00:42]} 24. Kxg2 {[%clk 0:01:37.9]} 24... Rf7 {[%clk 0:00:39.9]} 25. Qe4
{[%clk 0:01:36.6]} 25... Raf8 {[%clk 0:00:38.7]} 26. Rc6 {[%clk 0:01:33.2]}
26... Qb4 {[%clk 0:00:32.9]} 27. Qxe6 {[%clk 0:01:23.3]} 27... Qxa4 {[%clk
0:00:34.1]} 28. Rxc7 {[%clk 0:00:57.9]} 28... Qxb5 {[%clk 0:00:34]} 29. Rxf7
{[%clk 0:00:57.8]} 29... Rxf7 {[%clk 0:00:34.7]} 30. Rc1 {[%clk 0:00:59.2]}
30... Qf5 {[%clk 0:00:29.8]} 31. Qxf5 {[%clk 0:00:46]} 31... Rxf5 {[%clk
0:00:31.7]} 32. Rc6 {[%clk 0:00:45.1]} 32... Rb5 {[%clk 0:00:31.3]} 33. e4
{[%clk 0:00:46.4]} 33... a4 {[%clk 0:00:32.4]} 34. d5 {[%clk 0:00:47.5]} 34...
a3 {[%clk 0:00:24.2]} 35. d6 {[%clk 0:00:48]} 35... Kf7 {[%clk 0:00:25.3]} 36.
e5 {[%clk 0:00:29.7]} 36... a2 {[%clk 0:00:21.6]} 37. Rc7+ {[%clk 0:00:30.4]}
37... Ke6 {[%clk 0:00:21.7]} 38. Re7+ {[%clk 0:00:31]} 38... Kf5 {[%clk
0:00:21.6]} 39. Ra7 {[%clk 0:00:31.3]} 39... Kxe5 {[%clk 0:00:13.9]} 40. Rxa2
{[%clk 0:00:31.4]} 40... Kxd6 {[%clk 0:00:14.5]} 41. Ra7 {[%clk 0:00:33]} 41...
h5 {[%clk 0:00:15.8]} 42. Rh7 {[%clk 0:00:33.2]} 42... h4 {[%clk 0:00:16.9]} 43.
Kh3 {[%clk 0:00:32.5]} 43... Rf5 {[%clk 0:00:18]} 44. Kg4 {[%clk 0:00:26.8]}
44... Rxf2 {[%clk 0:00:18.5]} 45. h3 {[%clk 0:00:26.8]} 45... Rg2+ {[%clk
0:00:19.8]} 46. Kf5 {[%clk 0:00:28.4]} 46... Rg3 {[%clk 0:00:20.5]} 47. Rb7
{[%clk 0:00:28.2]} 47... Kc5 {[%clk 0:00:21.8]} 48. Rc7+ {[%clk 0:00:28]} 48...
Kb4 {[%clk 0:00:22.2]} 49. Rc6 {[%clk 0:00:27.3]} 49... b5 {[%clk 0:00:23.3]}
0-1

[Event "*** Titled Tuesday 3|2 Blitz"]
[Site "Chess.com"]
[Date "2017.06.06"]
[Round "6"]
[White "Schemato"]
[Black "Blitzking4444"]
[Result "1-0"]
[WhiteElo "2292"]
[BlackElo "2007"]
[TimeControl "180+2"]
[EndTime "15:06:59 PDT"]
[Termination "Schemato won on time"]

1. c4 {[%clk 0:03:02]} 1... e5 {[%clk 0:03:00.6]} 2. g3 {[%clk 0:03:02.7]} 2...
Nf6 {[%clk 0:03:01.5]} 3. Bg2 {[%clk 0:03:02.8]} 3... d5 {[%clk 0:03:02.4]} 4.
cxd5 {[%clk 0:03:03.4]} 4... Nxd5 {[%clk 0:03:04.3]} 5. Nf3 {[%clk 0:03:04.7]}
5... Nc6 {[%clk 0:03:04.3]} 6. O-O {[%clk 0:03:05.1]} 6... Nb6 {[%clk
0:03:05.3]} 7. d3 {[%clk 0:03:04.7]} 7... Be7 {[%clk 0:03:05.6]} 8. Nbd2 {[%clk
0:03:05.6]} 8... O-O {[%clk 0:03:06.3]} 9. a3 {[%clk 0:03:06.9]} 9... a5 {[%clk
0:03:06.7]} 10. b3 {[%clk 0:03:05.3]} 10... f5 {[%clk 0:03:07.2]} 11. Bb2 {[%clk
0:03:03.2]} 11... Bf6 {[%clk 0:03:08.5]} 12. Nc4 {[%clk 0:02:58.9]} 12... Nxc4
{[%clk 0:02:55.3]} 13. bxc4 {[%clk 0:02:59.2]} 13... a4 {[%clk 0:02:34.2]} 14.
Rb1 {[%clk 0:02:54.2]} 14... Qe8 {[%clk 0:02:24.5]} 15. Ne1 {[%clk 0:02:45.6]}
15... Nd4 {[%clk 0:02:02.2]} 16. Bxd4 {[%clk 0:02:35.7]} 16... exd4 {[%clk
0:02:03.1]} 17. Bxb7 {[%clk 0:02:35.5]} 17... Ra5 {[%clk 0:01:45]} 18. Bd5+
{[%clk 0:02:18.4]} 18... Be6 {[%clk 0:01:45.5]} 19. Qd2 {[%clk 0:02:18.2]} 19...
Ra7 {[%clk 0:01:23.7]} 20. Bf3 {[%clk 0:02:18.4]} 20... Be7 {[%clk 0:01:11.3]}
21. Qb2 {[%clk 0:02:15.1]} 21... Bc5 {[%clk 0:01:09.3]} 22. Ng2 {[%clk
0:02:15.7]} 22... Qe7 {[%clk 0:01:05.3]} 23. Nf4 {[%clk 0:02:01.7]} 23... Bf7
{[%clk 0:01:05.5]} 24. Qa1 {[%clk 0:01:46.2]} 24... Qd6 {[%clk 0:01:02.1]} 25.
Rb5 {[%clk 0:01:41.9]} 25... g5 {[%clk 0:00:53.5]} 26. Ng2 {[%clk 0:01:08.4]}
26... c6 {[%clk 0:00:49.1]} 27. Rxc5 {[%clk 0:00:42.5]} 27... Qxc5 {[%clk
0:00:50.5]} 28. e3 {[%clk 0:00:39.6]} 28... Rd8 {[%clk 0:00:40.1]} 29. e4 {[%clk
0:00:35.3]} 29... g4 {[%clk 0:00:36.4]} 30. Be2 {[%clk 0:00:35.4]} 30... fxe4
{[%clk 0:00:36.7]} 31. dxe4 {[%clk 0:00:30.2]} 31... d3 {[%clk 0:00:07]} 32.
Bxg4 {[%clk 0:00:30.3]} 32... Qxc4 {[%clk 0:00:05.7]} 33. Bf5 {[%clk 0:00:26.9]}
33... Qd4 {[%clk 0:00:04.2]} 34. Qd1 {[%clk 0:00:25.7]} 34... d2 {[%clk
0:00:03.6]} 35. Ne3 {[%clk 0:00:24.7]} 35... c5 {[%clk 0:00:03.8]} 36. Qg4+
{[%clk 0:00:23.7]} 36... Qg7 {[%clk 0:00:04.6]} 37. Qe2 {[%clk 0:00:23.5]} 37...
c4 {[%clk 0:00:05.3]} 38. Nxc4 {[%clk 0:00:22.8]} 38... Bxc4 {[%clk 0:00:05.3]}
39. Qxc4+ {[%clk 0:00:23.4]} 39... Kh8 {[%clk 0:00:06.8]} 40. Rd1 {[%clk
0:00:23.4]} 40... Rc7 {[%clk 0:00:06.9]} 41. Qa2 {[%clk 0:00:17]} 41... Rc1
{[%clk 0:00:06.9]} 42. Bg4 {[%clk 0:00:14.6]} 42... Qc3 {[%clk 0:00:02.9]} 43.
Kg2 {[%clk 0:00:11.7]} 1-0

[Event "*** Titled Tuesday 3|2 Blitz"]
[Site "Chess.com"]
[Date "2017.06.06"]
[Round "6"]
[White "1lec"]
[Black "DiamondCrusher22"]
[Result "1-0"]
[WhiteElo "2046"]
[BlackElo "2013"]
[TimeControl "180+2"]
[EndTime "15:07:55 PDT"]
[Termination "1lec won by checkmate"]

1. e4 {[%clk 0:03:02]} 1... e5 {[%clk 0:02:58.3]} 2. Nf3 {[%clk 0:03:02.8]} 2...
Nc6 {[%clk 0:02:53.8]} 3. Bb5 {[%clk 0:03:03.6]} 3... Nf6 {[%clk 0:02:54.1]} 4.
O-O {[%clk 0:03:04.1]} 4... Nxe4 {[%clk 0:02:51.8]} 5. Re1 {[%clk 0:03:05.4]}
5... Nd6 {[%clk 0:02:52.1]} 6. Nxe5 {[%clk 0:03:06.5]} 6... Be7 {[%clk 0:02:49]}
7. Bf1 {[%clk 0:03:06.5]} 7... Nxe5 {[%clk 0:02:44.5]} 8. Rxe5 {[%clk
0:03:08.4]} 8... O-O {[%clk 0:02:45.2]} 9. d4 {[%clk 0:03:09.6]} 9... Bf6 {[%clk
0:02:44.8]} 10. Re1 {[%clk 0:03:10.8]} 10... Nf5 {[%clk 0:02:45]} 11. c3 {[%clk
0:03:12.1]} 11... d5 {[%clk 0:02:44.8]} 12. Bf4 {[%clk 0:03:11.7]} 12... c6
{[%clk 0:02:28.7]} 13. Nd2 {[%clk 0:03:03.2]} 13... Nd6 {[%clk 0:02:03.1]} 14.
h3 {[%clk 0:02:52.9]} 14... Bg5 {[%clk 0:01:52.4]} 15. Bxg5 {[%clk 0:02:49]}
15... Qxg5 {[%clk 0:01:49.2]} 16. Nf3 {[%clk 0:02:50.1]} 16... Qg6 {[%clk
0:01:45.5]} 17. Ne5 {[%clk 0:02:39.2]} 17... Qg5 {[%clk 0:01:43]} 18. Qf3 {[%clk
0:02:33.7]} 18... f6 {[%clk 0:01:35.9]} 19. Nd3 {[%clk 0:02:27.7]} 19... Bf5
{[%clk 0:01:35.5]} 20. Nf4 {[%clk 0:02:24.5]} 20... Be4 {[%clk 0:01:19.2]} 21.
Qe3 {[%clk 0:02:04.3]} 21... Nf5 {[%clk 0:01:07.4]} 22. Ne6 {[%clk 0:01:15.6]}
22... Nxe3 {[%clk 0:00:31.9]} 23. Nxg5 {[%clk 0:01:16.4]} 23... Nc2 {[%clk
0:00:32.8]} 24. Nxe4 {[%clk 0:00:43.7]} 24... dxe4 {[%clk 0:00:23]} 25. Bc4+
{[%clk 0:00:32.6]} 25... Kh8 {[%clk 0:00:22.7]} 26. Rad1 {[%clk 0:00:25.8]}
26... Nxe1 {[%clk 0:00:22.4]} 27. Rxe1 {[%clk 0:00:27.1]} 27... Rfe8 {[%clk
0:00:22.5]} 28. b4 {[%clk 0:00:25.2]} 28... a5 {[%clk 0:00:21.5]} 29. b5 {[%clk
0:00:21]} 29... cxb5 {[%clk 0:00:18.9]} 30. Bxb5 {[%clk 0:00:22.9]} 30... Re7
{[%clk 0:00:19.7]} 31. d5 {[%clk 0:00:22]} 31... Rd8 {[%clk 0:00:19]} 32. c4
{[%clk 0:00:19.6]} 32... f5 {[%clk 0:00:18.6]} 33. g3 {[%clk 0:00:13.2]} 33...
g5 {[%clk 0:00:18.6]} 34. Kf1 {[%clk 0:00:10.2]} 34... Kg7 {[%clk 0:00:19.6]}
35. Ke2 {[%clk 0:00:10.8]} 35... Kf6 {[%clk 0:00:20.3]} 36. Ke3 {[%clk
0:00:08.9]} 36... Ke5 {[%clk 0:00:19.7]} 37. Rf1 {[%clk 0:00:04.7]} 37... f4+
{[%clk 0:00:20.2]} 38. gxf4+ {[%clk 0:00:05.6]} 38... gxf4+ {[%clk 0:00:21.3]}
39. Ke2 {[%clk 0:00:07.1]} 39... Kd4 {[%clk 0:00:20.4]} 40. Rg1 {[%clk
0:00:07.6]} 40... f3+ {[%clk 0:00:20.7]} 41. Kd2 {[%clk 0:00:07.8]} 41... Kc5
{[%clk 0:00:18.8]} 42. Ke3 {[%clk 0:00:08.2]} 42... Rd6 {[%clk 0:00:14.3]} 43.
Rg4 {[%clk 0:00:08.9]} 43... Rh6 {[%clk 0:00:13.4]} 44. h4 {[%clk 0:00:04.8]}
44... Rh5 {[%clk 0:00:11.9]} 45. Rxe4 {[%clk 0:00:04.2]} 45... Rxe4+ {[%clk
0:00:11.7]} 46. Kxe4 {[%clk 0:00:06.1]} 46... Rxh4+ {[%clk 0:00:13.2]} 47. Kxf3
{[%clk 0:00:07.7]} 47... Rh3+ {[%clk 0:00:12.4]} 48. Ke4 {[%clk 0:00:08.5]}
48... Ra3 {[%clk 0:00:11.3]} 49. f4 {[%clk 0:00:09]} 49... Rxa2 {[%clk
0:00:09.9]} 50. f5 {[%clk 0:00:10.5]} 50... Rf2 {[%clk 0:00:09.5]} 51. Ke5
{[%clk 0:00:11.2]} 51... h5 {[%clk 0:00:10.5]} 52. d6 {[%clk 0:00:10.5]} 52...
h4 {[%clk 0:00:11]} 53. d7 {[%clk 0:00:11.3]} 53... Rd2 {[%clk 0:00:10]} 54. f6
{[%clk 0:00:12.5]} 54... h3 {[%clk 0:00:08]} 55. f7 {[%clk 0:00:13.8]} 55...
Re2+ {[%clk 0:00:08]} 56. Kf4 {[%clk 0:00:10.4]} 56... Rg2 {[%clk 0:00:02.8]}
57. f8=Q+ {[%clk 0:00:10.9]} 57... Kd4 {[%clk 0:00:02.6]} 58. d8=Q+ {[%clk
0:00:12.3]} 58... Kc3 {[%clk 0:00:03.5]} 59. Qff6+ {[%clk 0:00:13.2]} 59... Kb3
{[%clk 0:00:04.5]} 60. Qd3+ {[%clk 0:00:13.8]} 60... Kb4 {[%clk 0:00:05]} 61.
Qfd6# {[%clk 0:00:14.6]} 1-0